[Event "Early-Titled-Tuesday-Blitz-October-10-2023"]
[Site "Chess.com"]
[Date "2023.10.10"]
[Round "4"]
[White "remi04"]
[Black "Dacean99"]
[Result "1-0"]
[WhiteElo "2866"]
[BlackElo "2593"]
[TimeControl "180+1"]
[EndTime "8:34:44 PDT"]
[Termination "remi04 won by resignation"]

1. e4 {[%clk 0:03:00.9]} 1... e6 {[%clk 0:02:59.5]} 2. d4 {[%clk 0:03:00.6]}
2... d5 {[%clk 0:02:59.9]} 3. Nd2 {[%clk 0:03:01.3]} 3... c5 {[%clk 0:02:59.8]}
4. Ngf3 {[%clk 0:03:00.9]} 4... cxd4 {[%clk 0:02:59.7]} 5. Nxd4 {[%clk
0:03:01.3]} 5... e5 {[%clk 0:02:59.7]} 6. N4f3 {[%clk 0:02:46.6]} 6... dxe4
{[%clk 0:02:59.8]} 7. Nxe5 {[%clk 0:02:41.2]} 7... Nf6 {[%clk 0:02:53.8]} 8. Bc4
{[%clk 0:02:32.7]} 8... Be6 {[%clk 0:02:28.3]} 9. Bxe6 {[%clk 0:02:31.2]} 9...
fxe6 {[%clk 0:02:29.2]} 10. Qe2 {[%clk 0:02:28.5]} 10... Qd5 {[%clk 0:02:27.6]}
11. Ng4 {[%clk 0:02:21]} 11... Ba3 {[%clk 0:02:04.5]} 12. Nxf6+ {[%clk
0:02:15.9]} 12... gxf6 {[%clk 0:01:47.9]} 13. Nxe4 {[%clk 0:02:15]} 13... Be7
{[%clk 0:01:46.1]} 14. O-O {[%clk 0:02:08.4]} 14... Nc6 {[%clk 0:01:43.5]} 15.
Rd1 {[%clk 0:02:07.1]} 15... Qe5 {[%clk 0:01:39.9]} 16. c3 {[%clk 0:02:02.6]}
16... Rg8 {[%clk 0:01:32.7]} 17. Qf3 {[%clk 0:01:58.4]} 17... Rd8 {[%clk
0:01:27.9]} 18. Be3 {[%clk 0:01:57.2]} 18... Rxd1+ {[%clk 0:00:59.7]} 19. Rxd1
{[%clk 0:01:58.1]} 19... f5 {[%clk 0:00:56.9]} 20. Qh5+ {[%clk 0:01:56.6]} 1-0

[Event "Early-Titled-Tuesday-Blitz-October-10-2023"]
[Site "Chess.com"]
[Date "2023.10.10"]
[Round "4"]
[White "Lady_Nika"]
[Black "Road2GM3000"]
[Result "1-0"]
[WhiteElo "2533"]
[BlackElo "2376"]
[TimeControl "180+1"]
[EndTime "8:34:49 PDT"]
[Termination "Lady_Nika won by resignation"]

1. c4 {[%clk 0:03:00.9]} 1... c6 {[%clk 0:02:35.4]} 2. d4 {[%clk 0:03:00.2]}
2... d5 {[%clk 0:02:35.5]} 3. cxd5 {[%clk 0:02:59.8]} 3... cxd5 {[%clk
0:02:35.5]} 4. Nc3 {[%clk 0:03:00.3]} 4... Nf6 {[%clk 0:02:36.2]} 5. Nf3 {[%clk
0:03:00.5]} 5... a6 {[%clk 0:02:36.9]} 6. e3 {[%clk 0:03:00.6]} 6... Bg4 {[%clk
0:02:37.4]} 7. Be2 {[%clk 0:03:00.7]} 7... e6 {[%clk 0:02:37.9]} 8. Ne5 {[%clk
0:03:00.4]} 8... Bxe2 {[%clk 0:02:37.9]} 9. Qxe2 {[%clk 0:03:01.3]} 9... Nbd7
{[%clk 0:02:38]} 10. f4 {[%clk 0:03:01.3]} 10... Bb4 {[%clk 0:02:36.8]} 11. O-O
{[%clk 0:03:01.2]} 11... Bxc3 {[%clk 0:02:36.5]} 12. bxc3 {[%clk 0:03:01.4]}
12... Rc8 {[%clk 0:02:32.1]} 13. c4 {[%clk 0:02:54.2]} 13... Nxe5 {[%clk
0:02:25.8]} 14. fxe5 {[%clk 0:02:54]} 14... Ne4 {[%clk 0:02:26.5]} 15. cxd5
{[%clk 0:02:52.8]} 15... Qxd5 {[%clk 0:02:26]} 16. Ba3 {[%clk 0:02:52.5]} 16...
Rc7 {[%clk 0:01:28]} 17. Qb2 {[%clk 0:02:36]} 17... Qb5 {[%clk 0:01:23.4]} 18.
Qxb5+ {[%clk 0:02:15.8]} 18... axb5 {[%clk 0:01:23.6]} 19. Rf4 {[%clk
0:02:11.4]} 19... Nd2 {[%clk 0:01:20.1]} 20. Bd6 {[%clk 0:02:08.1]} 20... Rc3
{[%clk 0:01:16.1]} 21. Bb4 {[%clk 0:02:00.5]} 21... Rc2 {[%clk 0:01:02.5]} 22.
Rf2 {[%clk 0:01:59.7]} 1-0

[Event "Early-Titled-Tuesday-Blitz-October-10-2023"]
[Site "Chess.com"]
[Date "2023.10.10"]
[Round "4"]
[White "emeli_chess"]
[Black "Savagelittlemole"]
[Result "1-0"]
[WhiteElo "2387"]
[BlackElo "2553"]
[TimeControl "180+1"]
[EndTime "8:34:53 PDT"]
[Termination "emeli_chess won by resignation"]

1. d4 {[%clk 0:03:00.3]} 1... Nf6 {[%clk 0:02:59.3]} 2. c4 {[%clk 0:03:00.1]}
2... c5 {[%clk 0:03:00]} 3. d5 {[%clk 0:02:59.7]} 3... e6 {[%clk 0:03:00.8]} 4.
Nc3 {[%clk 0:02:59.4]} 4... exd5 {[%clk 0:03:01.6]} 5. cxd5 {[%clk 0:02:59.8]}
5... d6 {[%clk 0:03:02.4]} 6. Nf3 {[%clk 0:03:00.2]} 6... g6 {[%clk 0:03:02.9]}
7. h3 {[%clk 0:03:00.4]} 7... Bg7 {[%clk 0:03:03.3]} 8. e4 {[%clk 0:03:00.8]}
8... O-O {[%clk 0:03:03.8]} 9. Bd3 {[%clk 0:03:00.9]} 9... a6 {[%clk 0:03:04.4]}
10. a4 {[%clk 0:03:00.6]} 10... Nbd7 {[%clk 0:03:03.7]} 11. O-O {[%clk 0:03:00]}
11... Re8 {[%clk 0:03:04.1]} 12. Re1 {[%clk 0:03:00]} 12... Qe7 {[%clk
0:02:58.8]} 13. Bg5 {[%clk 0:02:55.8]} 13... Ne5 {[%clk 0:02:55.5]} 14. Nxe5
{[%clk 0:02:54]} 14... Qxe5 {[%clk 0:02:56.4]} 15. Qd2 {[%clk 0:02:39.9]} 15...
Rb8 {[%clk 0:02:47.1]} 16. Bf4 {[%clk 0:02:37.2]} 16... Qe7 {[%clk 0:02:46.9]}
17. e5 {[%clk 0:02:35.3]} 17... Nh5 {[%clk 0:02:43]} 18. exd6 {[%clk 0:02:33]}
18... Qd7 {[%clk 0:02:34.2]} 19. Rxe8+ {[%clk 0:02:31.9]} 19... Qxe8 {[%clk
0:02:35.1]} 20. d7 {[%clk 0:02:32.1]} 20... Bxd7 {[%clk 0:02:34.7]} 21. Bxb8
{[%clk 0:02:30.8]} 21... Qxb8 {[%clk 0:02:35.6]} 22. Re1 {[%clk 0:02:28.2]}
22... Nf4 {[%clk 0:02:29.8]} 23. Bc4 {[%clk 0:02:21.7]} 23... Bd4 {[%clk
0:02:25.6]} 24. Ne4 {[%clk 0:01:58.1]} 24... Bf5 {[%clk 0:02:18.8]} 25. d6
{[%clk 0:01:53.7]} 25... Bxe4 {[%clk 0:02:09.1]} 26. Rxe4 {[%clk 0:01:53]} 26...
g5 {[%clk 0:01:59.5]} 27. d7 {[%clk 0:01:46.4]} 27... Nxh3+ {[%clk 0:01:54.9]}
28. Kh1 {[%clk 0:01:33.6]} 28... Kg7 {[%clk 0:01:46.2]} 29. gxh3 {[%clk
0:01:23.6]} 29... Qd6 {[%clk 0:01:44]} 30. Qxg5+ {[%clk 0:01:21]} 1-0

[Event "Early-Titled-Tuesday-Blitz-October-10-2023"]
[Site "Chess.com"]
[Date "2023.10.10"]
[Round "4"]
[White "GM4life"]
[Black "parintele_chess"]
[Result "0-1"]
[WhiteElo "2476"]
[BlackElo "2258"]
[TimeControl "180+1"]
[EndTime "8:34:58 PDT"]
[Termination "parintele_chess won by resignation"]

1. d4 {[%clk 0:02:57.3]} 1... Nf6 {[%clk 0:02:59.8]} 2. c4 {[%clk 0:02:58.2]}
2... e6 {[%clk 0:03:00.2]} 3. Nc3 {[%clk 0:02:58.7]} 3... Bb4 {[%clk 0:03:00.5]}
4. e3 {[%clk 0:02:59.1]} 4... b6 {[%clk 0:02:59.9]} 5. Bd3 {[%clk 0:02:59.6]}
5... Bb7 {[%clk 0:02:59.7]} 6. Nf3 {[%clk 0:03:00.3]} 6... O-O {[%clk
0:02:53.6]} 7. O-O {[%clk 0:03:00.8]} 7... h6 {[%clk 0:02:53.5]} 8. Qe2 {[%clk
0:02:59.9]} 8... Bxc3 {[%clk 0:02:46.2]} 9. bxc3 {[%clk 0:03:00.4]} 9... Ne4
{[%clk 0:02:46.6]} 10. Qc2 {[%clk 0:02:58.2]} 10... f5 {[%clk 0:02:45.8]} 11.
Nd2 {[%clk 0:02:59.1]} 11... Nxd2 {[%clk 0:02:36.8]} 12. Bxd2 {[%clk 0:03:00]}
12... d6 {[%clk 0:02:36.2]} 13. e4 {[%clk 0:02:59.9]} 13... fxe4 {[%clk
0:02:36]} 14. Bxe4 {[%clk 0:03:00.1]} 14... Bxe4 {[%clk 0:02:36.6]} 15. Qxe4
{[%clk 0:03:00.6]} 15... Nd7 {[%clk 0:02:16.6]} 16. Qxe6+ {[%clk 0:03:01.1]}
16... Kh8 {[%clk 0:02:16.8]} 17. Rae1 {[%clk 0:03:01.5]} 17... Nf6 {[%clk
0:02:13.8]} 18. Qh3 {[%clk 0:02:59.8]} 18... Re8 {[%clk 0:01:58.3]} 19. Re3
{[%clk 0:02:54.5]} 19... Rxe3 {[%clk 0:01:53.4]} 20. Bxe3 {[%clk 0:02:52.9]}
20... Qg8 {[%clk 0:01:49.2]} 21. d5 {[%clk 0:02:50.9]} 21... Re8 {[%clk
0:01:45.2]} 22. Bd4 {[%clk 0:02:50.4]} 22... Qf7 {[%clk 0:01:34.3]} 23. Qf3
{[%clk 0:02:46.9]} 23... Kg8 {[%clk 0:01:27.5]} 24. h3 {[%clk 0:02:45.5]} 24...
Ne4 {[%clk 0:01:26.2]} 25. Qxf7+ {[%clk 0:02:43.3]} 25... Kxf7 {[%clk
0:01:27.1]} 26. Re1 {[%clk 0:02:44]} 26... Nd2 {[%clk 0:01:25.5]} 27. Rb1 {[%clk
0:02:33.9]} 27... Nxc4 {[%clk 0:01:18.6]} 28. Rb4 {[%clk 0:02:33.7]} 28... Re1+
{[%clk 0:01:14.8]} 29. Kh2 {[%clk 0:02:33.9]} 29... Nd2 {[%clk 0:01:12.8]} 30.
h4 {[%clk 0:02:25.5]} 30... Re2 {[%clk 0:01:07.2]} 31. Kg3 {[%clk 0:02:17.1]}
31... Nf1+ {[%clk 0:01:07.1]} 32. Kf3 {[%clk 0:02:15.9]} 32... Rxa2 {[%clk
0:01:07.4]} 33. Rc4 {[%clk 0:02:15.3]} 33... Nd2+ {[%clk 0:01:06.3]} 34. Kg3
{[%clk 0:02:13.2]} 34... Nxc4 {[%clk 0:01:07.2]} 0-1

[Event "Early-Titled-Tuesday-Blitz-October-10-2023"]
[Site "Chess.com"]
[Date "2023.10.10"]
[Round "4"]
[White "Virgo15"]
[Black "Chessdreamer2020"]
[Result "1-0"]
[WhiteElo "2745"]
[BlackElo "2542"]
[TimeControl "180+1"]
[EndTime "8:35:24 PDT"]
[Termination "Virgo15 won by resignation"]

1. d4 {[%clk 0:03:00.9]} 1... d6 {[%clk 0:02:59.8]} 2. e4 {[%clk 0:02:56.1]}
2... Nf6 {[%clk 0:02:58.5]} 3. Nc3 {[%clk 0:02:54.8]} 3... c6 {[%clk 0:02:58.8]}
4. f4 {[%clk 0:02:53.9]} 4... d5 {[%clk 0:02:59.4]} 5. e5 {[%clk 0:02:53.8]}
5... Ng8 {[%clk 0:03:00.1]} 6. Bd3 {[%clk 0:02:53.2]} 6... g6 {[%clk 0:02:59.5]}
7. h4 {[%clk 0:02:52.8]} 7... h5 {[%clk 0:02:59.4]} 8. f5 {[%clk 0:02:52.6]}
8... Bxf5 {[%clk 0:02:55.6]} 9. Bxf5 {[%clk 0:02:52.5]} 9... gxf5 {[%clk
0:02:56.5]} 10. Nh3 {[%clk 0:02:52.8]} 10... e6 {[%clk 0:02:54.9]} 11. Bg5
{[%clk 0:02:52.7]} 11... Be7 {[%clk 0:02:53.6]} 12. Qd2 {[%clk 0:02:51.3]} 12...
Nd7 {[%clk 0:02:51.3]} 13. O-O-O {[%clk 0:02:50.3]} 13... Qa5 {[%clk 0:02:42.7]}
14. Nf4 {[%clk 0:02:49.4]} 14... Bb4 {[%clk 0:02:37.8]} 15. Rh3 {[%clk
0:02:44.5]} 15... Nb6 {[%clk 0:02:37.5]} 16. b3 {[%clk 0:02:20.3]} 16... Rc8
{[%clk 0:02:06.7]} 17. Qd3 {[%clk 0:02:16]} 17... a6 {[%clk 0:01:49.2]} 18. a4
{[%clk 0:02:11.2]} 18... c5 {[%clk 0:01:48.2]} 19. Nfxd5 {[%clk 0:01:53.5]}
19... Nxd5 {[%clk 0:01:40.7]} 20. Nxd5 {[%clk 0:01:53.8]} 20... exd5 {[%clk
0:01:40]} 21. Qxf5 {[%clk 0:01:54.5]} 21... Rc6 {[%clk 0:01:23.2]} 22. e6 {[%clk
0:01:39.8]} 22... Rxe6 {[%clk 0:01:12.8]} 23. Re3 {[%clk 0:01:40.4]} 23... Ba3+
{[%clk 0:01:03.4]} 24. Kb1 {[%clk 0:01:39.7]} 24... Rxe3 {[%clk 0:00:51.7]} 25.
Qc8+ {[%clk 0:01:38]} 1-0

[Event "Early-Titled-Tuesday-Blitz-October-10-2023"]
[Site "Chess.com"]
[Date "2023.10.10"]
[Round "4"]
[White "LuisFSiles"]
[Black "vishwa_vijeta"]
[Result "0-1"]
[WhiteElo "2323"]
[BlackElo "2555"]
[TimeControl "180+1"]
[EndTime "8:35:28 PDT"]
[Termination "vishwa_vijeta won by resignation"]

1. e4 {[%clk 0:03:00.9]} 1... c5 {[%clk 0:02:59.6]} 2. Nf3 {[%clk 0:02:58.3]}
2... d6 {[%clk 0:02:56.4]} 3. d4 {[%clk 0:02:58]} 3... cxd4 {[%clk 0:02:57.3]}
4. Nxd4 {[%clk 0:02:58.3]} 4... Nf6 {[%clk 0:02:57.1]} 5. Nc3 {[%clk 0:02:58.6]}
5... g6 {[%clk 0:02:58]} 6. Be3 {[%clk 0:02:58]} 6... Bg7 {[%clk 0:02:56.9]} 7.
f3 {[%clk 0:02:58.4]} 7... O-O {[%clk 0:02:57.8]} 8. Qd2 {[%clk 0:02:58.8]} 8...
Nc6 {[%clk 0:02:58.1]} 9. O-O-O {[%clk 0:02:58.9]} 9... d5 {[%clk 0:02:57.9]}
10. Kb1 {[%clk 0:02:58.8]} 10... Nxd4 {[%clk 0:02:54]} 11. e5 {[%clk 0:02:57]}
11... Nf5 {[%clk 0:02:53]} 12. exf6 {[%clk 0:02:56.3]} 12... exf6 {[%clk
0:02:51.9]} 13. Bc5 {[%clk 0:02:52.4]} 13... d4 {[%clk 0:02:52.8]} 14. Bxf8
{[%clk 0:02:51.6]} 14... Qxf8 {[%clk 0:02:53]} 15. Nb5 {[%clk 0:02:50]} 15...
Ne3 {[%clk 0:02:49]} 16. Re1 {[%clk 0:02:41.4]} 16... f5 {[%clk 0:02:46.7]} 17.
Nxd4 {[%clk 0:02:32.4]} 17... f4 {[%clk 0:02:46.5]} 18. Bb5 {[%clk 0:01:41.5]}
18... Qc5 {[%clk 0:02:40.5]} 19. c3 {[%clk 0:00:30.6]} 19... Bxd4 {[%clk
0:02:37.2]} 20. Qxd4 {[%clk 0:00:30.6]} 20... Bf5+ {[%clk 0:02:34.7]} 21. Bd3
{[%clk 0:00:29.2]} 21... Qxd4 {[%clk 0:02:33.7]} 22. cxd4 {[%clk 0:00:24.3]}
22... Bxd3+ {[%clk 0:02:33.6]} 23. Kc1 {[%clk 0:00:22.3]} 23... Rc8+ {[%clk
0:02:32.3]} 24. Kd2 {[%clk 0:00:21.9]} 24... Ba6 {[%clk 0:02:32.1]} 25. Rc1
{[%clk 0:00:21.5]} 25... Rd8 {[%clk 0:02:30.9]} 26. Kc3 {[%clk 0:00:18.9]} 26...
Nxg2 {[%clk 0:02:30.5]} 27. h4 {[%clk 0:00:16.4]} 27... Ne3 {[%clk 0:02:30.3]}
28. h5 {[%clk 0:00:16.4]} 28... Kg7 {[%clk 0:02:30.4]} 29. h6+ {[%clk
0:00:16.6]} 29... Kf6 {[%clk 0:02:30.8]} 30. Rh4 {[%clk 0:00:16.8]} 30... g5
{[%clk 0:02:29.8]} 31. Rh5 {[%clk 0:00:17.2]} 31... Nf5 {[%clk 0:02:29.9]} 32.
Rg1 {[%clk 0:00:14.9]} 32... Ng3 {[%clk 0:02:29.9]} 33. Rh2 {[%clk 0:00:15.3]}
33... Ne2+ {[%clk 0:02:29.9]} 34. Rxe2 {[%clk 0:00:14.4]} 34... Bxe2 {[%clk
0:02:30.8]} 0-1

[Event "Early-Titled-Tuesday-Blitz-October-10-2023"]
[Site "Chess.com"]
[Date "2023.10.10"]
[Round "4"]
[White "AvitalBor"]
[Black "Bilan_Danila"]
[Result "1-0"]
[WhiteElo "2815"]
[BlackElo "2573"]
[TimeControl "180+1"]
[EndTime "8:35:44 PDT"]
[Termination "AvitalBor won by resignation"]

1. c4 {[%clk 0:03:00.9]} 1... c6 {[%clk 0:02:45.4]} 2. e4 {[%clk 0:03:00.1]}
2... d5 {[%clk 0:02:45.4]} 3. exd5 {[%clk 0:03:01]} 3... cxd5 {[%clk 0:02:45.9]}
4. cxd5 {[%clk 0:03:01.9]} 4... a6 {[%clk 0:02:45.2]} 5. Nf3 {[%clk 0:03:00.3]}
5... Nf6 {[%clk 0:02:45.2]} 6. Nc3 {[%clk 0:02:58.8]} 6... Nxd5 {[%clk
0:02:45.2]} 7. Bc4 {[%clk 0:02:58.9]} 7... e6 {[%clk 0:02:43.6]} 8. O-O {[%clk
0:02:58.5]} 8... Be7 {[%clk 0:02:39.6]} 9. d4 {[%clk 0:02:57.3]} 9... b5 {[%clk
0:02:37.8]} 10. Nxd5 {[%clk 0:02:46.8]} 10... bxc4 {[%clk 0:02:23.6]} 11. Nxe7
{[%clk 0:02:45.2]} 11... Qxe7 {[%clk 0:02:24.5]} 12. Qa4+ {[%clk 0:02:43.9]}
12... Bd7 {[%clk 0:02:24]} 13. Qxc4 {[%clk 0:02:44.1]} 13... Bb5 {[%clk
0:02:23.9]} 14. Qc8+ {[%clk 0:02:43.9]} 14... Qd8 {[%clk 0:02:21.8]} 15. Qxd8+
{[%clk 0:02:43.6]} 15... Kxd8 {[%clk 0:02:22.7]} 16. Re1 {[%clk 0:02:41.2]}
16... Nd7 {[%clk 0:02:17.3]} 17. Ng5 {[%clk 0:02:33.8]} 17... Ke7 {[%clk
0:02:06.1]} 18. d5 {[%clk 0:02:32.1]} 18... e5 {[%clk 0:01:42.9]} 19. b3 {[%clk
0:02:30.9]} 19... f5 {[%clk 0:01:27.7]} 20. f4 {[%clk 0:02:25.5]} 20... e4
{[%clk 0:01:19.6]} 21. g4 {[%clk 0:02:20]} 21... g6 {[%clk 0:01:11.1]} 22. Ba3+
{[%clk 0:02:18.4]} 22... Ke8 {[%clk 0:01:00.7]} 23. Rac1 {[%clk 0:02:16.4]}
23... Nf6 {[%clk 0:00:50.7]} 24. Bb2 {[%clk 0:02:13.5]} 24... Rf8 {[%clk
0:00:43]} 25. Ne6 {[%clk 0:02:03.6]} 25... Nxd5 {[%clk 0:00:39.8]} 26. Nxf8
{[%clk 0:02:02.7]} 26... Kxf8 {[%clk 0:00:40.7]} 27. gxf5 {[%clk 0:02:02.4]}
27... gxf5 {[%clk 0:00:39.8]} 28. Rc5 {[%clk 0:02:02.6]} 28... Ne7 {[%clk
0:00:27.9]} 29. Ba3 {[%clk 0:02:02]} 29... Kf7 {[%clk 0:00:22.3]} 30. Rc7 {[%clk
0:02:01.4]} 30... Re8 {[%clk 0:00:20.8]} 31. Kf2 {[%clk 0:02:01.3]} 31... Ke6
{[%clk 0:00:20.6]} 32. Rxe7+ {[%clk 0:02:01.2]} 32... Rxe7 {[%clk 0:00:21.5]}
33. Bxe7 {[%clk 0:02:01.3]} 33... Kxe7 {[%clk 0:00:22.4]} 34. Ke3 {[%clk
0:02:01.7]} 34... Kd6 {[%clk 0:00:22.9]} 35. Rg1 {[%clk 0:02:01.4]} 1-0

[Event "Early-Titled-Tuesday-Blitz-October-10-2023"]
[Site "Chess.com"]
[Date "2023.10.10"]
[Round "4"]
[White "BJthechessgod"]
[Black "Lion-Al-Messi"]
[Result "0-1"]
[WhiteElo "2386"]
[BlackElo "2626"]
[TimeControl "180+1"]
[EndTime "8:35:45 PDT"]
[Termination "Lion-Al-Messi won by resignation"]

1. e4 {[%clk 0:02:57.6]} 1... c5 {[%clk 0:02:59.8]} 2. Nf3 {[%clk 0:02:57.4]}
2... e6 {[%clk 0:02:59.8]} 3. d4 {[%clk 0:02:58]} 3... cxd4 {[%clk 0:03:00.5]}
4. Nxd4 {[%clk 0:02:58.9]} 4... a6 {[%clk 0:03:00.8]} 5. c4 {[%clk 0:02:57.8]}
5... Nf6 {[%clk 0:02:58.3]} 6. Nc3 {[%clk 0:02:58.2]} 6... Qc7 {[%clk
0:02:58.3]} 7. a3 {[%clk 0:02:57.6]} 7... b6 {[%clk 0:02:58.2]} 8. Be2 {[%clk
0:02:55]} 8... Bb7 {[%clk 0:02:58.4]} 9. f3 {[%clk 0:02:55.7]} 9... Be7 {[%clk
0:02:57.5]} 10. O-O {[%clk 0:02:55.8]} 10... O-O {[%clk 0:02:57.1]} 11. Be3
{[%clk 0:02:56.5]} 11... d6 {[%clk 0:02:56.3]} 12. Rc1 {[%clk 0:02:57.1]} 12...
Nbd7 {[%clk 0:02:55.5]} 13. b4 {[%clk 0:02:55.2]} 13... Rab8 {[%clk 0:02:54.8]}
14. Qd2 {[%clk 0:02:53.8]} 14... Rfc8 {[%clk 0:02:55.3]} 15. Rfd1 {[%clk
0:02:54.2]} 15... Ne5 {[%clk 0:02:46.9]} 16. Na4 {[%clk 0:02:52.7]} 16... Qd8
{[%clk 0:02:42.9]} 17. Nb3 {[%clk 0:02:25.6]} 17... Bc6 {[%clk 0:02:37.4]} 18.
Nc3 {[%clk 0:02:19.5]} 18... Qe8 {[%clk 0:02:33]} 19. Qd4 {[%clk 0:02:17.9]}
19... Ba8 {[%clk 0:02:24]} 20. Bf1 {[%clk 0:01:46.7]} 20... Nfd7 {[%clk
0:02:23.8]} 21. h3 {[%clk 0:01:24.4]} 21... h6 {[%clk 0:02:21.8]} 22. f4 {[%clk
0:01:22.6]} 22... Nc6 {[%clk 0:02:21.5]} 23. Qd2 {[%clk 0:01:21.9]} 23... Nf8
{[%clk 0:02:18.7]} 24. Nd4 {[%clk 0:01:14.3]} 24... Rd8 {[%clk 0:02:10.4]} 25.
Nxc6 {[%clk 0:01:09.5]} 25... Bxc6 {[%clk 0:02:11.3]} 26. Bd4 {[%clk 0:01:09.1]}
26... Ba8 {[%clk 0:02:10.1]} 27. Qe3 {[%clk 0:01:06.6]} 27... Nd7 {[%clk
0:02:05.4]} 28. Qg3 {[%clk 0:00:59.9]} 28... e5 {[%clk 0:02:03.6]} 29. fxe5
{[%clk 0:00:55.5]} 29... dxe5 {[%clk 0:02:04.5]} 30. Bxe5 {[%clk 0:00:45.6]}
30... Nxe5 {[%clk 0:02:04]} 31. Qxe5 {[%clk 0:00:46.5]} 31... Bc5+ {[%clk
0:02:03.2]} 32. bxc5 {[%clk 0:00:23.3]} 32... Qxe5 {[%clk 0:02:02.8]} 33. Rxd8+
{[%clk 0:00:22.1]} 33... Rxd8 {[%clk 0:02:03]} 34. cxb6 {[%clk 0:00:22.8]} 34...
Qc5+ {[%clk 0:02:02.9]} 35. Kh1 {[%clk 0:00:22.9]} 35... Qxb6 {[%clk 0:02:03.1]}
36. Nd5 {[%clk 0:00:23.7]} 36... Bxd5 {[%clk 0:02:02.9]} 37. cxd5 {[%clk
0:00:24.4]} 37... Qe3 {[%clk 0:02:02.8]} 38. Bxa6 {[%clk 0:00:23.9]} 38... Qxc1+
{[%clk 0:02:02.7]} 0-1

[Event "Early-Titled-Tuesday-Blitz-October-10-2023"]
[Site "Chess.com"]
[Date "2023.10.10"]
[Round "4"]
[White "OparinGrigoriy"]
[Black "DefiantChair"]
[Result "1-0"]
[WhiteElo "2996"]
[BlackElo "2606"]
[TimeControl "180+1"]
[EndTime "8:35:49 PDT"]
[Termination "OparinGrigoriy won by resignation"]

1. Nf3 {[%clk 0:03:00.9]} 1... d5 {[%clk 0:02:58.7]} 2. g3 {[%clk 0:03:01.8]}
2... Nf6 {[%clk 0:02:58.4]} 3. c4 {[%clk 0:03:02.1]} 3... e6 {[%clk 0:02:58.8]}
4. Bg2 {[%clk 0:03:02.6]} 4... dxc4 {[%clk 0:02:58.3]} 5. Qa4+ {[%clk 0:03:02]}
5... Nbd7 {[%clk 0:02:58]} 6. Qxc4 {[%clk 0:03:02.5]} 6... a6 {[%clk 0:02:58.5]}
7. Qc2 {[%clk 0:03:02.7]} 7... c5 {[%clk 0:02:56.8]} 8. Nc3 {[%clk 0:03:03.1]}
8... Bd6 {[%clk 0:02:56.3]} 9. d4 {[%clk 0:03:02.1]} 9... O-O {[%clk 0:02:55.3]}
10. O-O {[%clk 0:03:02.6]} 10... h6 {[%clk 0:02:49]} 11. Rd1 {[%clk 0:03:02.7]}
11... Qe7 {[%clk 0:02:47]} 12. dxc5 {[%clk 0:02:31.5]} 12... Bxc5 {[%clk
0:02:37.5]} 13. Na4 {[%clk 0:02:30.6]} 13... Ba7 {[%clk 0:02:33.3]} 14. Nd4
{[%clk 0:02:18.7]} 14... Rb8 {[%clk 0:01:50.3]} 15. Bf4 {[%clk 0:02:15.5]} 15...
e5 {[%clk 0:01:49.1]} 16. Nf5 {[%clk 0:02:16.1]} 16... Qe6 {[%clk 0:01:49]} 17.
Rd6 {[%clk 0:02:10.2]} 17... Qe8 {[%clk 0:01:48.7]} 18. Be3 {[%clk 0:02:01.1]}
18... Bxe3 {[%clk 0:01:45.1]} 19. Nxe3 {[%clk 0:02:02]} 19... b5 {[%clk
0:01:44.6]} 20. Nc3 {[%clk 0:02:02.1]} 20... Bb7 {[%clk 0:01:35.5]} 21. Bxb7
{[%clk 0:01:59.5]} 21... Rxb7 {[%clk 0:01:36.4]} 22. Rxa6 {[%clk 0:01:59.9]}
22... Qb8 {[%clk 0:01:27.2]} 23. Rd1 {[%clk 0:01:58.8]} 23... Rc8 {[%clk
0:01:22.6]} 24. Qf5 {[%clk 0:01:45.8]} 24... Nc5 {[%clk 0:01:16.4]} 25. Rxf6
{[%clk 0:01:44.9]} 25... gxf6 {[%clk 0:01:16.1]} 26. Ncd5 {[%clk 0:01:43.6]}
26... Rc6 {[%clk 0:01:04.9]} 27. Nxf6+ {[%clk 0:01:42.3]} 27... Kg7 {[%clk
0:01:04.3]} 28. Neg4 {[%clk 0:01:40.8]} 28... Re7 {[%clk 0:00:31.9]} 29. Qh7+
{[%clk 0:01:40.3]} 1-0

[Event "Early-Titled-Tuesday-Blitz-October-10-2023"]
[Site "Chess.com"]
[Date "2023.10.10"]
[Round "4"]
[White "Khuslen2008"]
[Black "F-Ghaith2021"]
[Result "0-1"]
[WhiteElo "2310"]
[BlackElo "2510"]
[TimeControl "180+1"]
[EndTime "8:36:01 PDT"]
[Termination "F-Ghaith2021 won on time"]

1. d4 {[%clk 0:03:00.9]} 1... Nf6 {[%clk 0:02:57.5]} 2. c4 {[%clk 0:03:00.5]}
2... e6 {[%clk 0:02:57.8]} 3. Nc3 {[%clk 0:03:00]} 3... d5 {[%clk 0:02:58.2]} 4.
cxd5 {[%clk 0:02:59.5]} 4... exd5 {[%clk 0:02:58.3]} 5. Bg5 {[%clk 0:02:59.1]}
5... c6 {[%clk 0:02:56.6]} 6. e3 {[%clk 0:02:59.2]} 6... Be7 {[%clk 0:02:57.2]}
7. Bd3 {[%clk 0:02:59]} 7... Nbd7 {[%clk 0:02:57.5]} 8. Qc2 {[%clk 0:02:58]}
8... Nh5 {[%clk 0:02:57.5]} 9. Bxe7 {[%clk 0:02:53.7]} 9... Qxe7 {[%clk
0:02:58.4]} 10. Nf3 {[%clk 0:02:45.4]} 10... g6 {[%clk 0:02:56.8]} 11. O-O-O
{[%clk 0:02:36.1]} 11... f5 {[%clk 0:02:55.9]} 12. Kb1 {[%clk 0:02:32.5]} 12...
Nb6 {[%clk 0:02:54.6]} 13. h3 {[%clk 0:02:31.8]} 13... Bd7 {[%clk 0:02:52.4]}
14. Ne5 {[%clk 0:02:31.5]} 14... O-O-O {[%clk 0:02:45]} 15. g4 {[%clk 0:02:31]}
15... fxg4 {[%clk 0:02:42.8]} 16. hxg4 {[%clk 0:02:30.8]} 16... Nf6 {[%clk
0:02:39.5]} 17. f3 {[%clk 0:02:29.3]} 17... Kb8 {[%clk 0:02:38.6]} 18. Na4
{[%clk 0:02:26]} 18... Nxa4 {[%clk 0:02:36.9]} 19. Qxa4 {[%clk 0:02:25.9]} 19...
c5 {[%clk 0:02:29]} 20. Nxd7+ {[%clk 0:02:06.7]} 20... Nxd7 {[%clk 0:02:29.9]}
21. dxc5 {[%clk 0:02:05.6]} 21... Nxc5 {[%clk 0:02:27]} 22. Qf4+ {[%clk
0:02:05.6]} 22... Ka8 {[%clk 0:02:26.1]} 23. Bc2 {[%clk 0:02:03.2]} 23... Rhf8
{[%clk 0:02:24.3]} 24. Qg3 {[%clk 0:01:32.2]} 24... Qxe3 {[%clk 0:02:22.6]} 25.
Rxh7 {[%clk 0:01:30.4]} 25... d4 {[%clk 0:02:15.5]} 26. Qc7 {[%clk 0:01:28.7]}
26... d3 {[%clk 0:02:14.6]} 27. Bb3 {[%clk 0:01:05]} 27... Rc8 {[%clk
0:02:09.9]} 28. Qg7 {[%clk 0:00:53.6]} 28... Qxf3 {[%clk 0:02:04.5]} 29. Rd2
{[%clk 0:00:18.6]} 29... Nxb3 {[%clk 0:02:02.1]} 30. axb3 {[%clk 0:00:18.4]}
30... Rf6 {[%clk 0:01:57.3]} 0-1